fUST/lending_fUST_20240704
["ID","MTS","AMOUNT","RATE_DAILY","PERIOD"]
[331079006,1720067444058,-500.0,0.00014831,2]
[331079007,1720067444068,-500.0,0.00014831,2]
[331079008,1720067444077,-500.0,0.00014831,2]
[331079009,1720067444086,-500.0,0.00014831,2]
[331079010,1720067444095,-500.0,0.00014831,2]
[331079011,1720067444104,-500.0,0.00014831,2]
[331079012,1720067444114,-1752.19,0.00014831,2]
[331079013,1720067444123,-690.1,0.00014831,2]
[331079014,1720067444133,-500.0,0.00014831,2]
[331079015,1720067444144,-1984.32,0.00014831,2]
[331079016,1720067444153,-972.06,0.00014831,2]
[331079017,1720067444163,-500.0,0.00014831,2]
[331079018,1720067444269,-719.38,0.00014831,2]
[331079019,1720067444279,-500.0,0.00014831,2]
[331079020,1720067444289,-819.82,0.00014831,2]
[331079021,1720067444298,-3775.77,0.00014831,2]
[331079022,1720067444307,-500.0,0.00014831,2]
[331079023,1720067444317,-647.17,0.00014831,2]
[331079024,1720067444326,-500.0,0.00014831,2]
[331079025,1720067444335,-500.0,0.00014831,2]
[331079026,1720067444344,-500.0,0.00014831,2]
[331079027,1720067444353,-500.0,0.00014831,2]
[331079028,1720067444363,-500.0,0.00014831,2]
[331079029,1720067444372,-500.0,0.00014831,2]
[331079030,1720067444381,-500.0,0.00014831,2]
[331079031,1720067444391,-1216.88,0.00014831,2]
[331079032,1720067444400,-778.7,0.00014831,2]
[331079033,1720067444409,-3668.47,0.00014831,2]
[331079034,1720067444418,-500.0,0.00014832,2]
[331079035,1720067444428,-517.22953442,0.00014832,2]
[331079036,1720067444437,-500.0,0.00014832,2]
[331079037,1720067444447,-504.82598237,0.00014832,2]
[331079038,1720067444457,-500.0,0.00014832,2]
[331079039,1720067444467,-500.0,0.00014832,2]
[331079040,1720067444476,-589.78587083,0.00014832,2]
[331079041,1720067444486,-500.0,0.00014832,2]
[331079042,1720067444495,-500.0,0.00014832,2]
[331079043,1720067444506,-529.16,0.00014832,2]
[331079044,1720067444516,-500.0,0.00014832,2]
[331079045,1720067444525,-500.0,0.00014832,2]
[331079046,1720067444534,-500.0,0.00014832,2]
[331079047,1720067444546,-656.15,0.00014832,2]
[331079048,1720067444556,-500.0,0.00014832,2]
[331079049,1720067444565,-668.82,0.00014832,2]
[331079050,1720067444575,-515.26,0.00014832,2]
[331079051,1720067444584,-694.78,0.00014832,2]
[331079052,1720067444594,-500.0,0.00014832,2]
[331079053,1720067444603,-500.0,0.00014832,2]
[331079054,1720067444612,-500.0,0.00014832,2]
[331079055,1720067444621,-500.0,0.00014832,2]
[331079056,1720067444631,-500.0,0.00014832,2]
[331079057,1720067444640,-500.0,0.00014832,2]
[331079058,1720067444650,-7720.81,0.00014832,2]
[331079059,1720067444660,-500.0,0.00014832,2]
[331079060,1720067444669,-500.0,0.00014832,2]
[331079061,1720067444680,-296.47946959,0.00014832,2]
[331079062,1720067444689,-500.0,0.00014832,2]
[331079063,1720067444699,-2207.54,0.00014832,2]
[331079064,1720067444709,-500.0,0.00014832,2]
[331079065,1720067444718,-778.68,0.00014832,2]
[331079066,1720067444728,-500.0,0.00014832,2]
[331079067,1720067444737,-500.0,0.00014837,2]
[331079068,1720067444747,-511.241059,0.00014837,2]
[331079069,1720067444758,-500.0,0.00014837,2]
[331079070,1720067444767,-500.0,0.00014837,2]
[331079071,1720067444777,-597.56,0.00014837,2]
[331079072,1720067444786,-500.0,0.00014837,2]
[331079073,1720067444796,-500.0,0.00014837,2]
[331079074,1720067444806,-706.01,0.00014837,2]
[331079075,1720067444815,-356.35727033,0.00014837,2]
[331079076,1720067444824,-500.0,0.00014837,2]
[331079077,1720067444834,-490.73431038,0.00014837,2]
[331079078,1720067444843,-500.0,0.00014837,2]
[331079079,1720067444853,-500.0,0.00014837,2]
[331079080,1720067444862,-500.0,0.00014837,2]
[331079081,1720067444871,-500.0,0.00014837,2]
[331079082,1720067444880,-500.0,0.00014837,2]
[331079083,1720067444889,-500.0,0.00014837,2]
[331079084,1720067444900,-510.33142613,0.00014837,2]
[331079085,1720067444909,-500.0,0.00014837,2]
[331079086,1720067444919,-500.0,0.00014837,2]
[331079087,1720067444929,-500.0,0.00014837,2]
[331079088,1720067444938,-500.0,0.00014837,2]
[331079089,1720067444949,-500.0,0.00014837,2]
[331079090,1720067444958,-500.0,0.00014837,2]
[331079091,1720067444970,-193.98649616,0.00014837,2]
[331079092,1720067444980,-500.0,0.00014837,2]
[331079093,1720067444990,-500.0,0.00014837,2]
[331079094,1720067444999,-234.07913535,0.00014837,2]
[331079095,1720067445010,-500.0,0.00014837,2]
[331079096,1720067445019,-500.0,0.00014837,2]
[331079097,1720067445028,-500.0,0.00014837,2]
[331079098,1720067445037,-500.0,0.00014837,2]
[331079099,1720067445048,-500.0,0.00014837,2]
[331079100,1720067445057,-500.0,0.00014837,2]
[331079101,1720067445067,-500.0,0.00014837,2]
[331079102,1720067445076,-500.0,0.00014837,2]
[331079103,1720067445085,-500.0,0.00014837,2]
[331079104,1720067445095,-516.23,0.00014837,2]
[331079105,1720067445105,-505.87353338,0.00014837,2]
[331079106,1720067445114,-500.0,0.00014837,2]
[331079107,1720067445125,-500.0,0.00014837,2]
[331079108,1720067445135,-500.0,0.00014837,2]
[331079109,1720067445144,-500.0,0.00014837,2]
[331079110,1720067445154,-500.0,0.00014837,2]
[331079111,1720067445164,-522.61977104,0.00014837,2]
[331079112,1720067445174,-500.0,0.00014837,2]
[331079113,1720067445183,-500.0,0.00014837,2]
[331079114,1720067445193,-500.0,0.00014837,2]
[331079115,1720067445203,-500.0,0.00014837,2]
[331079116,1720067445213,-500.0,0.00014837,2]
[331079117,1720067445222,-500.0,0.00014837,2]
[331079118,1720067445231,-500.0,0.00014837,2]
[331079119,1720067445240,-500.0,0.00014837,2]
[331079120,1720067445250,-500.0,0.00014837,2]
[331079121,1720067445260,-486.17017516,0.00014837,2]
[331079122,1720067445269,-196.03920964,0.00014837,2]
[331079123,1720067445278,-500.0,0.00014837,2]
[331079124,1720067445287,-500.0,0.00014837,2]
[331079125,1720067445296,-283.07585689,0.00014837,2]
[331079126,1720067445306,-500.0,0.00014837,2]
[331079127,1720067445315,-500.0,0.00014837,2]
[331079128,1720067445324,-502.36667903,0.00014837,2]
[331079129,1720067445334,-441.91774279,0.00014837,2]
[331079130,1720067445343,-500.0,0.00014838,2]
[331079131,1720067445352,-500.0,0.00014838,2]
[331079132,1720067445361,-500.0,0.00014842,2]
[331079133,1720067445370,-1053.92,0.00014842,2]
[331079134,1720067445380,-500.0,0.00014842,2]
[331079135,1720067445389,-3788.04,0.00014842,2]
[331079136,1720067445398,-764.91,0.00014842,2]
[331079137,1720067445407,-500.0,0.00014842,2]
[331079138,1720067445417,-578.61,0.00014842,2]
[331079139,1720067445427,-545.52357463,0.00014842,2]
[331079140,1720067445436,-500.0,0.00014842,2]
[331079141,1720067445446,-500.0,0.00014842,2]
[331079142,1720067445455,-500.0,0.00014843,2]
[331079143,1720067445465,-500.0,0.00014843,2]
[331079144,1720067445474,-500.0,0.00014843,2]
[331079145,1720067445483,-500.0,0.00014843,2]
[331079146,1720067445493,-503.35961836,0.00014843,2]
[331079147,1720067445502,-338.13041209,0.00014843,2]
[331079148,1720067445513,-500.0,0.00014843,2]
[331079150,1720067445522,-500.0,0.00014843,2]
[331079151,1720067445531,-500.0,0.00014843,2]
[331079153,1720067445541,-8891.61,0.00014843,2]
[331079155,1720067445550,-500.0,0.00014846,2]
[331079157,1720067445559,-500.0,0.00014847,2]
[331079159,1720067445568,-500.0,0.00014847,2]
[331079161,1720067445577,-940.03,0.00014847,2]
[331079163,1720067445587,-900.86,0.00014847,2]
[331079165,1720067445596,-562.32,0.00014847,2]
[331079166,1720067445606,-844.0,0.00014847,2]
[331079168,1720067445615,-4941.99,0.00014847,2]
[331079171,1720067445623,-2741.87,0.00014847,2]
[331079173,1720067445632,-151.0,0.00014847,2]
[331079176,1720067445641,-9614.54817379,0.00014998,2]
[331079178,1720067445651,-6076.9012323,0.00014998,2]
[331079181,1720067445660,-11133.48750384,0.00014998,2]
[331079184,1720067445669,-176.58256,0.00014998,2]
[331079186,1720067445679,-151.0,0.00014998,2]
[331079188,1720067445688,-151.0,0.00014998,2]
[331079191,1720067445697,-151.0,0.00014998,2]
[331079195,1720067445706,-3078.51196359,0.00014999,2]
[331079198,1720067445715,-1597.25650539,0.00014999,2]
[331079201,1720067445724,-1434.44237247,0.00014999,2]
[331079204,1720067445733,-3130.06017381,0.00014999,4]
[331079207,1720067445742,-1500.0,0.00014999,2]
[331079208,1720067445751,-789.77698638,0.00014999,2]
[331079212,1720067445763,-1634.59229075,0.00014999,2]
[331079215,1720067445771,-4710.72024946,0.00014999,2]
[331079217,1720067445780,-1463.29635585,0.00014999,2]
[331079220,1720067445790,-3137.77932824,0.00014999,2]
[331079224,1720067445799,-2118.3618334,0.00014999,2]
[331079228,1720067445808,-151.0,0.00014999,2]
[331079231,1720067445817,-151.0,0.00014999,2]
[331079234,1720067445826,-151.0,0.00014999,2]
[331079237,1720067445835,-395.4705443,0.00015,2]
[331079240,1720067445844,-1039.06688618,0.00015,2]
[331079243,1720067445853,-1104.60661146,0.00015,2]
[331079246,1720067445862,-948.84245203,0.00015,2]
[331079249,1720067445871,-2420.55776569,0.00015,2]
[331079252,1720067445879,-2843.34728943,0.00015,2]
[331079255,1720067445888,-808.0087546,0.00015,2]
[331079257,1720067445897,-153.0,0.00015014,2]
[331079259,1720067445907,-153.0,0.00015014,2]
[331079261,1720067445915,-500.0,0.00015104,2]
[331079263,1720067445924,-1490.86,0.00015104,2]
[331079265,1720067445933,-9633.62,0.00015104,2]
[331079267,1720067445942,-1162.38,0.00015104,2]
[331079270,1720067445951,-2194.42,0.00015104,2]
[331079271,1720067445960,-614.22,0.00015104,2]
[331079272,1720067445974,-501.65,0.00015104,2]
[331079273,1720067445984,-210.83067888,0.00015105,2]
[331079274,1720067445993,-878.64,0.00015105,2]
[331079275,1720067446002,-500.0,0.00015105,2]
[331079276,1720067446013,-500.0,0.00015105,2]
[331079277,1720067446022,-500.0,0.00015105,2]
[331079278,1720067446032,-1290.1,0.00015105,2]
[331079279,1720067446041,-500.0,0.00015105,2]
[331079280,1720067446050,-500.0,0.00015105,2]
[331079281,1720067446059,-734.57,0.00015105,2]
[331079282,1720067446068,-500.0,0.00015105,2]
[331079283,1720067446079,-1070.48,0.00015105,2]
[331079284,1720067446088,-500.0,0.00015105,2]
[331079285,1720067446096,-620.58,0.00015105,2]
[331079286,1720067446105,-539.77,0.00015105,2]
[331079287,1720067446114,-500.0,0.00015105,2]
[331079288,1720067446124,-500.0,0.00015105,2]
[331079289,1720067446133,-500.0,0.00015105,2]
[331079290,1720067446143,-649.93365918,0.00015105,2]
[331079291,1720067446152,-500.0,0.00015105,2]
[331079292,1720067446161,-500.0,0.00015105,2]
[331079293,1720067446171,-500.0,0.00015105,2]
[331079294,1720067446180,-500.0,0.00015105,2]
[331079295,1720067446191,-521.91,0.00015105,2]
[331079296,1720067446201,-500.0,0.00015105,2]
[331079297,1720067446297,-500.0,0.00015105,2]
[331079298,1720067446307,-500.0,0.00015105,2]
[331079299,1720067446316,-500.0,0.00015105,2]
[331079300,1720067446325,-500.0,0.00015105,2]
[331079301,1720067446334,-500.0,0.00015105,2]
[331079302,1720067446343,-500.0,0.00015105,2]
[331079303,1720067446352,-1752.19,0.00015105,2]
[331079304,1720067446361,-690.1,0.00015105,2]
[331079305,1720067446370,-500.0,0.00015105,2]
[331079306,1720067446379,-1984.32,0.00015105,2]
[331079307,1720067446388,-972.06,0.00015105,2]
[331079308,1720067446397,-719.38,0.00015105,2]
[331079309,1720067446406,-500.0,0.00015105,2]
[331079310,1720067446415,-819.82,0.00015105,2]
[331079311,1720067446424,-3775.77,0.00015105,2]
[331079312,1720067446433,-500.0,0.00015105,2]
[331079313,1720067446442,-647.17,0.00015105,2]
[331079314,1720067446450,-500.0,0.00015105,2]
[331079315,1720067446459,-518.75977937,0.00015105,2]
[331079316,1720067446468,-500.0,0.00015105,2]
[331079317,1720067446477,-500.0,0.00015105,2]
[331079318,1720067446486,-500.0,0.00015105,2]
[331079319,1720067446495,-500.0,0.00015105,2]
[331079320,1720067446504,-614.04872408,0.00015105,2]
[331079321,1720067446514,-1216.88,0.00015105,2]
[331079322,1720067446522,-778.7,0.00015105,2]
[331079323,1720067446531,-3668.47,0.00015105,2]
[331079324,1720067446540,-500.0,0.00015106,2]
[331079325,1720067446548,-500.0,0.00015106,2]
[331079326,1720067446558,-500.0,0.00015106,2]
[331079327,1720067446566,-500.0,0.00015106,2]
[331079328,1720067446575,-500.0,0.00015106,2]
[331079329,1720067446584,-500.0,0.00015106,2]
[331079330,1720067446593,-529.16,0.00015106,2]
[331079331,1720067446601,-500.0,0.00015106,2]
[331079332,1720067446611,-500.0,0.00015106,2]
[331079333,1720067446620,-656.15,0.00015106,2]
[331079334,1720067446628,-500.0,0.00015106,2]
[331079335,1720067446637,-668.82,0.00015106,2]
[331079336,1720067446647,-515.26,0.00015106,2]
[331079337,1720067446655,-694.78,0.00015106,2]
[331079338,1720067446664,-500.0,0.00015106,2]
[331079339,1720067446673,-500.0,0.00015106,2]
[331079340,1720067446682,-500.0,0.00015106,2]
[331079341,1720067446691,-500.0,0.00015106,2]
[331079342,1720067446701,-500.0,0.00015106,2]
[331079343,1720067446710,-500.0,0.00015106,2]
[331079344,1720067446719,-7720.81,0.00015106,2]
[331079345,1720067446728,-500.0,0.00015106,2]
[331079346,1720067446737,-500.0,0.00015106,2]
[331079347,1720067446747,-500.0,0.00015106,2]
[331079348,1720067446755,-2207.54,0.00015106,2]
[331079349,1720067446765,-500.0,0.00015106,2]
[331079350,1720067446774,-778.68,0.00015106,2]
[331079351,1720067446783,-500.0,0.00015106,2]
[331079352,1720067446792,-500.0,0.00015111,2]
[331079353,1720067446801,-500.0,0.00015111,2]
[331079354,1720067446810,-500.0,0.00015111,2]
[331079355,1720067446819,-597.56,0.00015111,2]
[331079356,1720067446827,-500.0,0.00015111,2]
[331079357,1720067446836,-500.0,0.00015111,2]
[331079358,1720067446845,-706.01,0.00015111,2]
[331079359,1720067446854,-500.0,0.00015111,2]
[331079360,1720067446863,-500.0,0.00015111,2]
[331079361,1720067446872,-515.60059593,0.00015111,2]
[331079362,1720067446881,-500.0,0.00015111,2]
[331079363,1720067446890,-500.0,0.00015111,2]
[331079364,1720067446899,-397.6592249,0.00015111,2]
[331079365,1720067446908,-500.0,0.00015111,2]
[331079366,1720067446917,-500.0,0.00015111,2]
[331079367,1720067446927,-500.0,0.00015111,2]
[331079368,1720067446936,-500.0,0.00015111,2]
[331079369,1720067446945,-500.0,0.00015111,2]
[331079370,1720067446954,-500.0,0.00015111,2]
[331079371,1720067446964,-500.0,0.00015111,2]
[331079372,1720067446978,-445.85910362,0.00015111,2]
[331079373,1720067446987,-500.0,0.00015111,2]
[331079374,1720067446996,-500.0,0.00015111,2]
[331079375,1720067447005,-500.0,0.00015111,2]
[331079376,1720067447016,-566.91614325,0.00015111,2]
[331079377,1720067447025,-500.0,0.00015111,2]
[331079378,1720067447035,-500.0,0.00015111,2]
[331079379,1720067447043,-500.0,0.00015111,2]
[331079380,1720067447053,-516.23,0.00015111,2]
[331079381,1720067447063,-500.0,0.00015111,2]
[331079382,1720067447072,-500.0,0.00015111,2]
[331079383,1720067447082,-199.22392977,0.00015111,2]
[331079384,1720067447091,-475.65215327,0.00015111,2]
[331079385,1720067447100,-500.0,0.00015111,2]
[331079386,1720067447109,-500.0,0.00015111,2]
[331079387,1720067447118,-573.59046043,0.00015111,2]
[331079388,1720067447128,-500.0,0.00015111,2]
[331079389,1720067447137,-500.0,0.00015111,2]
[331079390,1720067447146,-500.0,0.00015111,2]
[331079391,1720067447155,-500.0,0.00015111,2]
[331079392,1720067447164,-500.0,0.00015111,2]
[331079393,1720067447173,-500.0,0.00015111,2]
[331079394,1720067447182,-500.0,0.00015111,2]
[331079395,1720067447194,-500.0,0.00015112,2]
[331079396,1720067447203,-500.0,0.00015112,2]
[331079397,1720067447212,-500.0,0.00015116,2]
[331079398,1720067447221,-1053.92,0.00015116,2]
[331079399,1720067447230,-3788.04,0.00015116,2]
[331079400,1720067447239,-764.91,0.00015116,2]
[331079401,1720067447248,-500.0,0.00015116,2]
[331079402,1720067447258,-578.61,0.00015116,2]
[331079403,1720067447267,-500.0,0.00015116,2]
[331079404,1720067447276,-500.0,0.00015116,2]
[331079405,1720067447286,-151.0,0.00015116,2]
[331079406,1720067447295,-500.0,0.00015117,2]
[331079407,1720067447306,-500.0,0.00015117,2]
[331079408,1720067447315,-500.0,0.00015117,2]
[331079409,1720067447325,-500.0,0.00015117,2]
[331079410,1720067447334,-500.0,0.00015117,2]
[331079411,1720067447343,-8891.61,0.00015117,2]
[331079412,1720067447353,-500.0,0.00015121,2]
[331079413,1720067447364,-500.0,0.00015121,2]
[331079414,1720067447373,-400.73215011,0.00015121,2]
[331079415,1720067447383,-1895.03,0.00015121,2]
[331079416,1720067447392,-940.03,0.00015121,2]
[331079417,1720067447400,-900.86,0.00015121,2]
[331079418,1720067447410,-562.32,0.00015121,2]
[331079419,1720067447418,-844.0,0.00015121,2]
[331079420,1720067447427,-4941.99,0.00015121,2]
[331079421,1720067447436,-151.0,0.00015121,2]
[331079422,1720067447445,-151.0,0.00015121,2]
[331079423,1720067447454,-2741.87,0.00015121,2]
[331079424,1720067447463,-413.1850094,0.00015123,2]
[331079425,1720067447471,-500.0,0.00015378,2]
[331079426,1720067447480,-1490.86,0.00015378,2]
[331079427,1720067447489,-9633.62,0.00015378,2]
[331079428,1720067447498,-1162.38,0.00015378,2]
[331079429,1720067447507,-2194.42,0.00015378,2]
[331079430,1720067447516,-614.22,0.00015378,2]
[331079431,1720067447526,-501.65,0.00015378,2]
[331079432,1720067447534,-878.64,0.00015379,2]
[331079433,1720067447543,-500.0,0.00015379,2]
[331079434,1720067447552,-500.0,0.00015379,2]
[331079435,1720067447562,-500.0,0.00015379,2]
[331079436,1720067447570,-500.0,0.00015379,2]
[331079437,1720067447579,-1290.1,0.00015379,2]
[331079438,1720067447589,-500.0,0.00015379,2]
[331079439,1720067447597,-500.0,0.00015379,2]
[331079440,1720067447606,-734.57,0.00015379,2]
[331079441,1720067447615,-500.0,0.00015379,2]
[331079442,1720067447624,-1070.48,0.00015379,2]
[331079443,1720067447632,-500.0,0.00015379,2]
[331079444,1720067447642,-620.58,0.00015379,2]
[331079445,1720067447651,-539.77,0.00015379,2]
[331079446,1720067447660,-500.0,0.00015379,2]
[331079447,1720067447669,-500.0,0.00015379,2]
[331079448,1720067447679,-500.0,0.00015379,2]
[331079449,1720067447690,-500.0,0.00015379,2]
[331079450,1720067447698,-500.0,0.00015379,2]
[331079451,1720067447707,-500.0,0.00015379,2]
[331079452,1720067447716,-500.0,0.00015379,2]
[331079453,1720067447725,-521.91,0.00015379,2]
[331079454,1720067447734,-151.0,0.00015379,2]
[331079455,1720067447742,-500.0,0.00015379,2]
[331079456,1720067447751,-500.0,0.00015379,2]
[331079457,1720067447760,-500.0,0.00015379,2]
[331079458,1720067447769,-500.0,0.00015379,2]
[331079459,1720067447778,-500.0,0.00015379,2]
[331079460,1720067447790,-500.0,0.00015379,2]
[331079461,1720067447798,-500.0,0.00015379,2]
[331079462,1720067447807,-1752.19,0.00015379,2]
[331079463,1720067447816,-690.1,0.00015379,2]
[331079464,1720067447825,-500.0,0.00015379,2]
[331079465,1720067447833,-1984.32,0.00015379,2]
[331079466,1720067447842,-972.06,0.00015379,2]
[331079467,1720067447851,-719.38,0.00015379,2]
[331079468,1720067447859,-151.0,0.00015379,2]
[331079469,1720067447868,-500.0,0.00015379,2]
[331079470,1720067447877,-819.82,0.00015379,2]
[331079471,1720067447886,-151.0,0.00015379,2]
[331079472,1720067447895,-3775.77,0.00015379,2]
[331079473,1720067447903,-500.0,0.00015379,2]
[331079474,1720067447912,-647.17,0.00015379,2]
[331079475,1720067447921,-282.88312774,0.00015379,2]
[331079476,1720067447931,-500.0,0.00015379,2]
[331079477,1720067447939,-500.0,0.00015379,2]
[331079478,1720067447948,-500.0,0.00015379,2]
[331079479,1720067447958,-500.0,0.00015379,2]
[331079480,1720067447968,-1216.88,0.00015379,2]
[331079481,1720067447980,-778.7,0.00015379,2]
[331079482,1720067447989,-3668.47,0.00015379,2]
[331079483,1720067447998,-500.0,0.0001538,2]
[331079484,1720067448009,-500.0,0.0001538,2]
[331079485,1720067448019,-500.0,0.0001538,2]
[331079486,1720067448028,-500.0,0.0001538,2]
[331079487,1720067448125,-500.0,0.0001538,2]
[331079488,1720067448134,-529.16,0.0001538,2]
[331079489,1720067448143,-500.0,0.0001538,2]
[331079490,1720067448152,-500.0,0.0001538,2]
[331079491,1720067448162,-656.15,0.0001538,2]
[331079492,1720067448171,-500.0,0.0001538,2]
[331079493,1720067448180,-668.82,0.0001538,2]
[331079494,1720067448190,-515.26,0.0001538,2]
[331079495,1720067448198,-694.78,0.0001538,2]
[331079496,1720067448208,-500.0,0.0001538,2]
[331079497,1720067448217,-500.0,0.0001538,2]
[331079498,1720067448227,-500.0,0.0001538,2]
[331079499,1720067448236,-500.0,0.0001538,2]
[331079500,1720067448246,-500.0,0.0001538,2]
[331079501,1720067448255,-500.0,0.0001538,2]
[331079502,1720067448265,-7720.81,0.0001538,2]
[331079503,1720067448274,-500.0,0.0001538,2]
[331079504,1720067448283,-500.0,0.0001538,2]
[331079505,1720067448292,-500.0,0.0001538,2]
[331079506,1720067448302,-2207.54,0.0001538,2]
[331079507,1720067448315,-559.70959437,0.0001538,2]
[331079508,1720067448324,-778.68,0.0001538,2]
[331079509,1720067448333,-342.61697353,0.0001538,2]
[331079510,1720067448342,-500.0,0.00015385,2]
[331079511,1720067448351,-500.0,0.00015385,2]
[331079512,1720067448361,-500.0,0.00015385,2]
[331079513,1720067448370,-597.56,0.00015385,2]
[331079514,1720067448379,-500.0,0.00015385,2]
[331079515,1720067448388,-500.0,0.00015385,2]
[331079516,1720067448398,-706.01,0.00015385,2]
[331079517,1720067448408,-500.0,0.00015385,2]
[331079518,1720067448417,-500.0,0.00015385,2]
[331079519,1720067448427,-500.0,0.00015385,2]
[331079520,1720067448436,-500.0,0.00015385,2]
[331079521,1720067448445,-500.0,0.00015385,2]
[331079522,1720067448455,-500.0,0.00015385,2]
[331079523,1720067448464,-500.0,0.00015385,2]
[331079524,1720067448474,-500.0,0.00015385,2]
[331079525,1720067448482,-500.0,0.00015385,2]
[331079526,1720067448491,-504.76238846,0.00015385,2]
[331079527,1720067448501,-500.0,0.00015385,2]
[331079528,1720067448512,-416.36549571,0.00015385,2]
[331079529,1720067448521,-500.0,0.00015385,2]
[331079530,1720067448530,-500.0,0.00015385,2]
[331079531,1720067448539,-500.0,0.00015385,2]
[331079532,1720067448548,-500.0,0.00015385,2]
[331079533,1720067448558,-500.0,0.00015385,2]
[331079534,1720067448567,-516.23,0.00015385,2]
[331079535,1720067448578,-500.0,0.00015385,2]
[331079536,1720067448587,-500.0,0.00015385,2]
[331079537,1720067448596,-500.0,0.00015385,2]
[331079538,1720067448605,-500.0,0.00015385,2]
[331079539,1720067448614,-500.0,0.00015385,2]
[331079540,1720067448623,-561.68146604,0.00015385,2]
[331079541,1720067448632,-500.0,0.00015385,2]
[331079542,1720067448642,-500.0,0.00015385,2]
[331079543,1720067448651,-500.0,0.00015385,2]
[331079544,1720067448660,-609.05376527,0.00015385,2]
[331079545,1720067448670,-500.0,0.00015385,2]
[331079546,1720067448679,-500.0,0.00015386,2]
[331079547,1720067448688,-518.79065479,0.00015386,2]
[331079548,1720067448697,-500.0,0.0001539,2]
[331079549,1720067448706,-1053.92,0.0001539,2]
[331079550,1720067448715,-3788.04,0.0001539,2]
[331079551,1720067448724,-764.91,0.0001539,2]
[331079552,1720067448733,-500.0,0.0001539,2]
[331079553,1720067448743,-578.61,0.0001539,2]
[331079554,1720067448752,-500.0,0.0001539,2]
[331079555,1720067448761,-500.0,0.0001539,2]
[331079556,1720067448771,-500.0,0.00015391,2]
[331079557,1720067448781,-500.0,0.00015391,2]
[331079558,1720067448790,-500.0,0.00015391,2]
[331079559,1720067448799,-500.0,0.00015391,2]
[331079560,1720067448808,-500.0,0.00015391,2]
[331079561,1720067448817,-8891.61,0.00015391,2]
[331079562,1720067448827,-500.0,0.00015395,2]
[331079563,1720067448836,-516.27078318,0.00015395,2]
[331079564,1720067448846,-1895.03,0.00015395,2]
[331079565,1720067448855,-940.03,0.00015395,2]
[331079566,1720067448864,-562.32,0.00015395,2]
[331079567,1720067448873,-844.0,0.00015395,2]
[331079568,1720067448882,-4941.99,0.00015395,2]
[331079569,1720067448892,-2741.87,0.00015395,2]
[331079570,1720067448901,-847.14760645,0.00015468,2]
[331079571,1720067448910,-1000.0,0.000155,2]
[331079572,1720067448919,-198.0,0.00015516,2]
[331079573,1720067448929,-500.0,0.00015615,2]
[331079574,1720067448938,-500.0,0.00015615,2]
[331079575,1720067448948,-500.0,0.00015615,2]
[331079576,1720067448957,-500.0,0.00015615,2]
[331079577,1720067448967,-500.0,0.00015615,2]
[331079578,1720067448980,-500.0,0.00015615,2]
[331079579,1720067448989,-500.0,0.00015615,2]